[Event "*** Titled Tuesday 3|2 Blitz"]
[Site "Chess.com"]
[Date "2016.01.05"]
[Round "5"]
[White "MapleDanish"]
[Black "Aygehovit1992"]
[Result "1/2-1/2"]
[WhiteElo "2072"]
[BlackElo "2398"]
[TimeControl "180+2"]
[EndTime "11:59:18 PST"]
[Termination "Game drawn by agreement"]

1. c4 {[%clk 0:03:01.9]} 1... d6 {[%clk 0:02:55.5]} 2. g3 {[%clk 0:03:02.6]}
2... g6 {[%clk 0:02:57.4]} 3. Bg2 {[%clk 0:03:03.9]} 3... Bg7 {[%clk 0:02:59.3]}
4. Nc3 {[%clk 0:03:05.3]} 4... Nf6 {[%clk 0:03:01.1]} 5. d4 {[%clk 0:03:06.7]}
5... O-O {[%clk 0:03:02.9]} 6. Nf3 {[%clk 0:03:08.1]} 6... Nc6 {[%clk
0:03:04.7]} 7. O-O {[%clk 0:03:09.3]} 7... a6 {[%clk 0:03:06.5]} 8. Qd3 {[%clk
0:03:10.5]} 8... Rb8 {[%clk 0:03:07.2]} 9. d5 {[%clk 0:03:11.9]} 9... Nb4 {[%clk
0:03:06.2]} 10. Qd1 {[%clk 0:03:12.1]} 10... a5 {[%clk 0:03:07.4]} 11. e4 {[%clk
0:03:13.7]} 11... Na6 {[%clk 0:03:07.1]} 12. Re1 {[%clk 0:03:14]} 12... e5
{[%clk 0:03:07.8]} 13. a3 {[%clk 0:03:01.5]} 13... Ne8 {[%clk 0:03:03.7]} 14.
Rb1 {[%clk 0:02:46.5]} 14... f5 {[%clk 0:02:56.5]} 15. Bg5 {[%clk 0:02:40.3]}
15... Nf6 {[%clk 0:02:57.3]} 16. b4 {[%clk 0:02:38.8]} 16... axb4 {[%clk
0:02:58.4]} 17. axb4 {[%clk 0:02:38.6]} 17... h6 {[%clk 0:03:00.1]} 18. Bxf6
{[%clk 0:02:37.5]} 18... Qxf6 {[%clk 0:03:01.3]} 19. Nd2 {[%clk 0:02:37.8]}
19... f4 {[%clk 0:03:00.6]} 20. Rf1 {[%clk 0:01:47.9]} 20... g5 {[%clk 0:02:32]}
21. h3 {[%clk 0:01:20.5]} 21... c5 {[%clk 0:02:22.3]} 22. dxc6 {[%clk
0:01:08.2]} 22... bxc6 {[%clk 0:02:23.5]} 23. b5 {[%clk 0:01:09.7]} 23... cxb5
{[%clk 0:02:24.8]} 24. Rxb5 {[%clk 0:01:07]} 24... Be6 {[%clk 0:02:15.9]} 25.
Rxb8 {[%clk 0:01:07.9]} 25... Rxb8 {[%clk 0:02:16.7]} 26. Nd5 {[%clk 0:01:08.5]}
26... Qf7 {[%clk 0:02:17.9]} 27. Qe2 {[%clk 0:00:31.1]} 27... Nc5 {[%clk
0:02:15.8]} 28. Rb1 {[%clk 0:00:32.2]} 28... Rxb1+ {[%clk 0:02:13.6]} 29. Nxb1
{[%clk 0:00:33.7]} 29... Qb7 {[%clk 0:02:13.1]} 30. Nbc3 {[%clk 0:00:31.6]}
30... Qb3 {[%clk 0:02:10.9]} 31. h4 {[%clk 0:00:22.2]} 31... fxg3 {[%clk
0:02:11.6]} 32. fxg3 {[%clk 0:00:22.9]} 32... gxh4 {[%clk 0:02:13.1]} 33. gxh4
{[%clk 0:00:24]} 33... Bxd5 {[%clk 0:02:14.6]} 34. Nxd5 {[%clk 0:00:24.2]} 34...
Qg3 {[%clk 0:02:15.2]} 35. Qf2 {[%clk 0:00:22.2]} 35... Qg4 {[%clk 0:02:11.5]}
36. Kh2 {[%clk 0:00:17.8]} 36... Nxe4 {[%clk 0:02:07.5]} 37. Ne7+ {[%clk
0:00:18.8]} 37... Kh8 {[%clk 0:02:07.2]} 38. Bxe4 {[%clk 0:00:11.7]} 38... Qxe4
{[%clk 0:02:08]} 39. Qf7 {[%clk 0:00:12.8]} 39... Qxh4+ {[%clk 0:02:08.5]} 40.
Kg2 {[%clk 0:00:14.4]} 40... Qg5+ {[%clk 0:02:09.6]} 41. Kf3 {[%clk 0:00:13.9]}
41... Qf6+ {[%clk 0:02:09.7]} 42. Qxf6 {[%clk 0:00:15]} 42... Bxf6 {[%clk
0:02:11.3]} 43. Nf5 {[%clk 0:00:16.6]} 43... Kh7 {[%clk 0:02:07.1]} 44. Nxd6
{[%clk 0:00:17.5]} 44... Kg6 {[%clk 0:02:05.1]} 45. c5 {[%clk 0:00:13.5]} 45...
Be7 {[%clk 0:02:05.1]} 46. Ke4 {[%clk 0:00:14.6]} 46... Kf6 {[%clk 0:02:03.2]}
47. Kd5 {[%clk 0:00:14.8]} 47... h5 {[%clk 0:02:01.4]} 48. Ne4+ {[%clk
0:00:15.8]} 48... Kf5 {[%clk 0:01:59]} 49. Ng3+ {[%clk 0:00:17.3]} 49... Kg4
{[%clk 0:01:56.5]} 50. c6 {[%clk 0:00:12.2]} 50... Bd8 {[%clk 0:01:55.6]} 51.
Nxh5 {[%clk 0:00:11.8]} 51... Kxh5 {[%clk 0:01:56.2]} 52. Kxe5 {[%clk
0:00:13.4]} 52... Bc7+ {[%clk 0:01:54.2]} 1/2-1/2

[Event "*** Titled Tuesday 3|2 Blitz"]
[Site "Chess.com"]
[Date "2016.01.05"]
[Round "5"]
[White "Haridaskesavan"]
[Black "Moltini"]
[Result "0-1"]
[WhiteElo "2099"]
[BlackElo "2182"]
[TimeControl "180+2"]
[EndTime "11:59:23 PST"]
[Termination "Moltini won by resignation"]

1. e4 {[%clk 0:03:01.9]} 1... c5 {[%clk 0:02:56.7]} 2. c3 {[%clk 0:03:02.2]}
2... Nf6 {[%clk 0:02:54.5]} 3. e5 {[%clk 0:03:02.4]} 3... Nd5 {[%clk 0:02:52.7]}
4. g3 {[%clk 0:03:03.4]} 4... e6 {[%clk 0:02:52.7]} 5. Bg2 {[%clk 0:03:04.1]}
5... Nc6 {[%clk 0:02:53.8]} 6. Nf3 {[%clk 0:03:02.2]} 6... d6 {[%clk 0:02:54]}
7. exd6 {[%clk 0:03:02.7]} 7... Bxd6 {[%clk 0:02:55.2]} 8. O-O {[%clk
0:03:03.5]} 8... O-O {[%clk 0:02:56.2]} 9. d4 {[%clk 0:03:04.5]} 9... cxd4
{[%clk 0:02:56.5]} 10. Nxd4 {[%clk 0:03:04.6]} 10... Nxd4 {[%clk 0:02:57.6]} 11.
Qxd4 {[%clk 0:03:04]} 11... Bc7 {[%clk 0:02:54.9]} 12. Na3 {[%clk 0:02:54.6]}
12... Bb6 {[%clk 0:02:55]} 13. Qd3 {[%clk 0:02:53.7]} 13... Ne7 {[%clk
0:02:35.4]} 14. Qxd8 {[%clk 0:02:50]} 14... Rxd8 {[%clk 0:02:35.8]} 15. Bg5
{[%clk 0:02:49.2]} 15... f6 {[%clk 0:02:36.5]} 16. Bf4 {[%clk 0:02:47.6]} 16...
e5 {[%clk 0:02:37.5]} 17. Bc1 {[%clk 0:02:41]} 17... Rb8 {[%clk 0:02:33.7]} 18.
Nc4 {[%clk 0:02:41.5]} 18... Bc7 {[%clk 0:02:34.6]} 19. Be3 {[%clk 0:02:40.8]}
19... b6 {[%clk 0:02:30.4]} 20. Rad1 {[%clk 0:02:34]} 20... Be6 {[%clk
0:02:30.1]} 21. Na3 {[%clk 0:02:17.9]} 21... a6 {[%clk 0:02:21]} 22. c4 {[%clk
0:02:18.5]} 22... Nf5 {[%clk 0:02:17.5]} 23. b3 {[%clk 0:02:12.9]} 23... Nxe3
{[%clk 0:02:16.8]} 24. fxe3 {[%clk 0:02:13.2]} 24... Bd6 {[%clk 0:02:16.3]} 25.
Nc2 {[%clk 0:02:13.6]} 25... Bc5 {[%clk 0:02:12.7]} 26. Kf2 {[%clk 0:02:14.2]}
26... a5 {[%clk 0:02:10.8]} 27. Bd5 {[%clk 0:02:11.8]} 27... Kf7 {[%clk
0:02:11.5]} 28. Kf3 {[%clk 0:02:08.5]} 28... Rd6 {[%clk 0:01:58.6]} 29. Bxe6+
{[%clk 0:02:03.4]} 29... Kxe6 {[%clk 0:01:59.2]} 30. Rxd6+ {[%clk 0:02:03.9]}
30... Bxd6 {[%clk 0:01:59.5]} 31. e4 {[%clk 0:02:04.2]} 31... g6 {[%clk
0:01:56.8]} 32. Ne3 {[%clk 0:02:04]} 32... f5 {[%clk 0:01:55.8]} 33. Nd5 {[%clk
0:02:03.8]} 33... Rf8 {[%clk 0:01:56.6]} 34. Ke2 {[%clk 0:01:58.6]} 34... Bc5
{[%clk 0:01:54.6]} 35. exf5+ {[%clk 0:01:45]} 35... gxf5 {[%clk 0:01:54.5]} 36.
Re1 {[%clk 0:01:29.6]} 36... h5 {[%clk 0:01:53.8]} 37. Kd3 {[%clk 0:01:26]}
37... Kd6 {[%clk 0:01:54.8]} 38. Rf1 {[%clk 0:01:21.4]} 38... h4 {[%clk
0:01:54.4]} 39. Ke2 {[%clk 0:01:11.6]} 39... hxg3 {[%clk 0:01:49.9]} 40. hxg3
{[%clk 0:01:12.3]} 40... Ke6 {[%clk 0:01:51.5]} 41. Rh1 {[%clk 0:01:08.9]} 41...
e4 {[%clk 0:01:52.4]} 42. Rh6+ {[%clk 0:01:02.7]} 42... Ke5 {[%clk 0:01:53.4]}
43. Nf4 {[%clk 0:01:02.8]} 43... Rg8 {[%clk 0:01:53.4]} 44. Rg6 {[%clk
0:00:56.2]} 44... Rh8 {[%clk 0:01:51.5]} 45. Re6+ {[%clk 0:00:27.6]} 45... Kd4
{[%clk 0:01:52.3]} 46. Rf6 {[%clk 0:00:27.2]} 46... Rh2+ {[%clk 0:01:51.3]} 47.
Kf1 {[%clk 0:00:27]} 47... Rxa2 {[%clk 0:01:52.2]} 48. Rxf5 {[%clk 0:00:27.1]}
48... e3 {[%clk 0:01:52.5]} 49. Ne2+ {[%clk 0:00:23]} 49... Ke4 {[%clk
0:01:50.9]} 50. Rf4+ {[%clk 0:00:21.5]} 50... Kd3 {[%clk 0:01:52]} 51. Rf7
{[%clk 0:00:18.1]} 51... Ra1+ {[%clk 0:01:51.5]} 52. Kg2 {[%clk 0:00:16.8]}
52... Kxe2 {[%clk 0:01:52.5]} 0-1

[Event "*** Titled Tuesday 3|2 Blitz"]
[Site "Chess.com"]
[Date "2016.01.05"]
[Round "5"]
[White "alex_zapata"]
[Black "PowerThinking2650"]
[Result "0-1"]
[WhiteElo "2195"]
[BlackElo "2075"]
[TimeControl "180+2"]
[EndTime "11:59:43 PST"]
[Termination "PowerThinking2650 won by resignation"]

1. e4 {[%clk 0:02:58.1]} 1... e5 {[%clk 0:02:01.4]} 2. Nf3 {[%clk 0:02:58]} 2...
Nc6 {[%clk 0:02:01.8]} 3. Bb5 {[%clk 0:02:58.2]} 3... a6 {[%clk 0:02:02.3]} 4.
Ba4 {[%clk 0:02:59.1]} 4... Nf6 {[%clk 0:02:02.5]} 5. O-O {[%clk 0:03:00.5]}
5... Be7 {[%clk 0:02:03]} 6. Re1 {[%clk 0:03:01.2]} 6... b5 {[%clk 0:02:03.1]}
7. Bb3 {[%clk 0:03:02.5]} 7... d6 {[%clk 0:02:04.5]} 8. c3 {[%clk 0:03:02.6]}
8... Bb7 {[%clk 0:02:04.8]} 9. d4 {[%clk 0:02:59.6]} 9... O-O {[%clk 0:02:04]}
10. Nbd2 {[%clk 0:02:57.9]} 10... Re8 {[%clk 0:02:04]} 11. Nf1 {[%clk
0:02:57.3]} 11... Bf8 {[%clk 0:02:04]} 12. Ng3 {[%clk 0:02:57.1]} 12... h6
{[%clk 0:02:03.9]} 13. d5 {[%clk 0:02:52.9]} 13... Nb8 {[%clk 0:02:02.3]} 14.
Nf5 {[%clk 0:02:52.7]} 14... Nbd7 {[%clk 0:02:01.8]} 15. Bc2 {[%clk 0:02:29.8]}
15... Kh7 {[%clk 0:01:58.8]} 16. h4 {[%clk 0:02:14.5]} 16... g6 {[%clk
0:01:58.7]} 17. Ng3 {[%clk 0:02:15.3]} 17... c6 {[%clk 0:01:57.2]} 18. dxc6
{[%clk 0:02:12.6]} 18... Bxc6 {[%clk 0:01:57.7]} 19. h5 {[%clk 0:02:14]} 19...
Nc5 {[%clk 0:01:56.8]} 20. hxg6+ {[%clk 0:02:12.4]} 20... fxg6 {[%clk
0:01:57.1]} 21. b4 {[%clk 0:02:06.1]} 21... Ne6 {[%clk 0:01:55.7]} 22. a4 {[%clk
0:01:47.2]} 22... Nf4 {[%clk 0:01:53.3]} 23. axb5 {[%clk 0:01:46.1]} 23... axb5
{[%clk 0:01:53.3]} 24. Rxa8 {[%clk 0:01:46.5]} 24... Qxa8 {[%clk 0:01:53.2]} 25.
Bxf4 {[%clk 0:01:36.9]} 25... exf4 {[%clk 0:01:53.1]} 26. Ne2 {[%clk 0:01:37.9]}
26... Bxe4 {[%clk 0:01:48.4]} 27. Nxf4 {[%clk 0:01:25.5]} 27... Bxc2 {[%clk
0:01:33.1]} 28. Qxc2 {[%clk 0:01:27.4]} 28... Rxe1+ {[%clk 0:01:32.9]} 29. Nxe1
{[%clk 0:01:28.6]} 29... Qe4 {[%clk 0:01:32.2]} 30. Qd2 {[%clk 0:01:12]} 30...
g5 {[%clk 0:01:31.7]} 31. Nfd3 {[%clk 0:01:09]} 31... Bg7 {[%clk 0:01:26]} 32.
Nc2 {[%clk 0:01:08.3]} 32... Nd5 {[%clk 0:01:24.7]} 33. Nd4 {[%clk 0:00:59.8]}
33... Bxd4 {[%clk 0:01:18]} 34. cxd4 {[%clk 0:01:01.7]} 34... Qxd4 {[%clk
0:01:18.7]} 35. Qc2 {[%clk 0:01:01.4]} 35... Kg7 {[%clk 0:01:12.6]} 36. Qb3
{[%clk 0:00:44.8]} 36... Qc4 {[%clk 0:01:11.3]} 37. Qa3 {[%clk 0:00:44.6]} 37...
Qd4 {[%clk 0:01:07.3]} 38. g3 {[%clk 0:00:41.8]} 38... h5 {[%clk 0:01:07.5]} 39.
Kg2 {[%clk 0:00:37.3]} 39... h4 {[%clk 0:01:07.7]} 40. Kf1 {[%clk 0:00:26.3]}
40... h3 {[%clk 0:01:00]} 41. Kg1 {[%clk 0:00:26.9]} 41... Qe4 {[%clk
0:00:58.6]} 42. Kf1 {[%clk 0:00:19]} 42... h2 {[%clk 0:00:58.4]} 43. Qa7+ {[%clk
0:00:19.1]} 43... Kg6 {[%clk 0:00:58]} 0-1

[Event "*** Titled Tuesday 3|2 Blitz"]
[Site "Chess.com"]
[Date "2016.01.05"]
[Round "5"]
[White "jk13"]
[Black "AdrianaNikolova"]
[Result "1-0"]
[WhiteElo "2239"]
[BlackElo "2173"]
[TimeControl "180+2"]
[EndTime "12:00:02 PST"]
[Termination "jk13 won by checkmate"]

1. d4 {[%clk 0:03:01.9]} 1... d5 {[%clk 0:02:59.8]} 2. c4 {[%clk 0:03:03]} 2...
c6 {[%clk 0:03:00.6]} 3. Nf3 {[%clk 0:03:03.6]} 3... Nf6 {[%clk 0:03:01.1]} 4.
Nc3 {[%clk 0:03:05.1]} 4... dxc4 {[%clk 0:03:01.6]} 5. a4 {[%clk 0:03:05.8]}
5... Bf5 {[%clk 0:03:02.2]} 6. Nh4 {[%clk 0:03:07.3]} 6... Be4 {[%clk
0:02:59.4]} 7. f3 {[%clk 0:03:05.6]} 7... Bg6 {[%clk 0:02:54.8]} 8. e4 {[%clk
0:03:05]} 8... e6 {[%clk 0:02:54.9]} 9. Nxg6 {[%clk 0:03:03.9]} 9... hxg6 {[%clk
0:02:55.4]} 10. Bxc4 {[%clk 0:03:05.6]} 10... Nbd7 {[%clk 0:02:51.8]} 11. Bf4
{[%clk 0:03:03.3]} 11... Qa5 {[%clk 0:02:43.9]} 12. O-O {[%clk 0:03:02.5]} 12...
g5 {[%clk 0:02:39.6]} 13. Bg3 {[%clk 0:03:03.2]} 13... Bb4 {[%clk 0:02:27.2]}
14. Qb3 {[%clk 0:03:00.5]} 14... Qb6 {[%clk 0:02:22.7]} 15. Rfd1 {[%clk
0:02:54.5]} 15... O-O {[%clk 0:02:20.6]} 16. Na2 {[%clk 0:02:54.3]} 16... Be7
{[%clk 0:02:10.7]} 17. Qxb6 {[%clk 0:02:56.2]} 17... Nxb6 {[%clk 0:01:59]} 18.
Bb3 {[%clk 0:02:57.1]} 18... a5 {[%clk 0:01:53.9]} 19. Nc1 {[%clk 0:02:54.5]}
19... Rfc8 {[%clk 0:01:40.2]} 20. Nd3 {[%clk 0:02:53.4]} 20... c5 {[%clk
0:01:32.1]} 21. dxc5 {[%clk 0:02:46.1]} 21... Bxc5+ {[%clk 0:01:34]} 22. Nxc5
{[%clk 0:02:47.9]} 22... Rxc5 {[%clk 0:01:35]} 23. Bf2 {[%clk 0:02:49.8]} 23...
Rc6 {[%clk 0:01:35.2]} 24. Rac1 {[%clk 0:02:51.4]} 24... Rac8 {[%clk 0:01:31.9]}
25. Rxc6 {[%clk 0:02:52.8]} 25... Rxc6 {[%clk 0:01:30.7]} 26. g4 {[%clk
0:02:47.9]} 26... Nc4 {[%clk 0:01:19.4]} 27. Bd4 {[%clk 0:02:30]} 27... e5
{[%clk 0:01:06.7]} 28. Bc3 {[%clk 0:02:30.1]} 28... Ne3 {[%clk 0:00:57.8]} 29.
Rd8+ {[%clk 0:02:30.5]} 29... Kh7 {[%clk 0:00:56.9]} 30. Bxf7 {[%clk 0:02:30.5]}
30... Rc7 {[%clk 0:00:50.2]} 31. Bb3 {[%clk 0:02:29.1]} 31... b6 {[%clk
0:00:42.9]} 32. Kf2 {[%clk 0:02:30]} 32... Nc4 {[%clk 0:00:44]} 33. Ke2 {[%clk
0:02:29.6]} 33... Rc6 {[%clk 0:00:34.7]} 34. Kd3 {[%clk 0:02:26.6]} 34... Rd6+
{[%clk 0:00:35.4]} 35. Rxd6 {[%clk 0:02:26.2]} 35... Nxd6 {[%clk 0:00:37.3]} 36.
Bxe5 {[%clk 0:02:27.9]} 36... Nb7 {[%clk 0:00:38.5]} 37. Bd4 {[%clk 0:02:26]}
37... Nd7 {[%clk 0:00:39.1]} 38. Bd5 {[%clk 0:02:23.7]} 38... Nbc5+ {[%clk
0:00:39.3]} 39. Kc4 {[%clk 0:02:22.2]} 39... Nxa4 {[%clk 0:00:38.6]} 40. Bc6
{[%clk 0:02:23]} 40... Nac5 {[%clk 0:00:31.5]} 41. Kb5 {[%clk 0:02:24]} 41...
Kg6 {[%clk 0:00:26.9]} 42. Be3 {[%clk 0:02:23]} 42... Kf6 {[%clk 0:00:27.2]} 43.
Bd4+ {[%clk 0:02:21]} 43... Kf7 {[%clk 0:00:27.7]} 44. Bxc5 {[%clk 0:02:17.7]}
44... Nxc5 {[%clk 0:00:28.1]} 45. Kxb6 {[%clk 0:02:19.6]} 45... Nd3 {[%clk
0:00:28.9]} 46. b3 {[%clk 0:02:16.1]} 46... Ne5 {[%clk 0:00:24.6]} 47. Bd5+
{[%clk 0:02:15.3]} 47... Ke7 {[%clk 0:00:22.4]} 48. Kxa5 {[%clk 0:02:17.2]}
48... Nxf3 {[%clk 0:00:23.4]} 49. h3 {[%clk 0:02:15.3]} 49... Nd2 {[%clk
0:00:24.2]} 50. b4 {[%clk 0:02:15.6]} 50... Nf3 {[%clk 0:00:18.2]} 51. b5 {[%clk
0:02:15.4]} 51... Kd7 {[%clk 0:00:17]} 52. Ka6 {[%clk 0:02:16.1]} 52... Kc8
{[%clk 0:00:16.4]} 53. Ka7 {[%clk 0:02:16.3]} 53... Ne5 {[%clk 0:00:15.3]} 54.
b6 {[%clk 0:02:16.8]} 54... Nd7 {[%clk 0:00:10.5]} 55. Be6 {[%clk 0:02:17.7]}
55... Kd8 {[%clk 0:00:12]} 56. Bxd7 {[%clk 0:02:18.5]} 56... Kxd7 {[%clk
0:00:13.9]} 57. b7 {[%clk 0:02:20.4]} 57... Ke6 {[%clk 0:00:15.8]} 58. b8=Q
{[%clk 0:02:21.7]} 58... Kf6 {[%clk 0:00:17.3]} 59. Qd6+ {[%clk 0:02:22.6]}
59... Kf7 {[%clk 0:00:18.3]} 60. e5 {[%clk 0:02:23.8]} 60... Kg8 {[%clk
0:00:18.7]} 61. e6 {[%clk 0:02:23.6]} 61... Kh7 {[%clk 0:00:20.6]} 62. e7 {[%clk
0:02:24.7]} 62... Kg8 {[%clk 0:00:19.6]} 63. e8=Q+ {[%clk 0:02:26.1]} 63... Kh7
{[%clk 0:00:21.5]} 64. Qdg6# {[%clk 0:02:27.1]} 1-0

[Event "*** Titled Tuesday 3|2 Blitz"]
[Site "Chess.com"]
[Date "2016.01.05"]
[Round "5"]
[White "Maitreia"]
[Black "TomsKantans"]
[Result "0-1"]
[WhiteElo "2451"]
[BlackElo "2355"]
[TimeControl "180+2"]
[EndTime "12:00:09 PST"]
[Termination "TomsKantans won by resignation"]

1. c4 {[%clk 0:03:01.9]} 1... e5 {[%clk 0:02:59.7]} 2. g3 {[%clk 0:03:03.4]}
2... Nc6 {[%clk 0:02:59.8]} 3. Bg2 {[%clk 0:03:04.5]} 3... Bc5 {[%clk
0:03:01.5]} 4. Nc3 {[%clk 0:03:05]} 4... a6 {[%clk 0:03:02]} 5. d3 {[%clk
0:03:06]} 5... d6 {[%clk 0:03:02.4]} 6. Nf3 {[%clk 0:03:07.5]} 6... Nf6 {[%clk
0:02:57.9]} 7. O-O {[%clk 0:03:08.9]} 7... O-O {[%clk 0:02:57.7]} 8. a3 {[%clk
0:03:08.7]} 8... Ba7 {[%clk 0:02:57.8]} 9. b4 {[%clk 0:03:09.3]} 9... Rb8 {[%clk
0:02:57.1]} 10. Be3 {[%clk 0:02:46.7]} 10... Nd4 {[%clk 0:02:52.1]} 11. Bxd4
{[%clk 0:02:38.8]} 11... exd4 {[%clk 0:02:45.5]} 12. Nd5 {[%clk 0:02:35.9]}
12... c6 {[%clk 0:02:40.8]} 13. Nxf6+ {[%clk 0:02:32.8]} 13... Qxf6 {[%clk
0:02:42.7]} 14. a4 {[%clk 0:02:28.4]} 14... Re8 {[%clk 0:02:41.9]} 15. Re1
{[%clk 0:02:27.6]} 15... Bg4 {[%clk 0:02:27.8]} 16. h3 {[%clk 0:02:25.9]} 16...
Bh5 {[%clk 0:02:28]} 17. Qb3 {[%clk 0:02:08.7]} 17... Re7 {[%clk 0:02:13.9]} 18.
a5 {[%clk 0:02:08.8]} 18... Rbe8 {[%clk 0:02:13.9]} 19. Ra2 {[%clk 0:02:03.2]}
19... h6 {[%clk 0:01:52.5]} 20. b5 {[%clk 0:01:49.1]} 20... Bc5 {[%clk
0:01:35.4]} 21. bxc6 {[%clk 0:01:48.9]} 21... bxc6 {[%clk 0:01:37.3]} 22. Qa4
{[%clk 0:01:50.4]} 22... Rc8 {[%clk 0:01:28.4]} 23. Rb2 {[%clk 0:01:48.1]} 23...
Qe6 {[%clk 0:01:13.2]} 24. Kh2 {[%clk 0:01:30.6]} 24... Qd7 {[%clk 0:01:00.7]}
25. Reb1 {[%clk 0:01:23.6]} 25... Rce8 {[%clk 0:00:54.3]} 26. Ng1 {[%clk
0:01:24.3]} 26... Bxe2 {[%clk 0:00:27.6]} 27. Bxc6 {[%clk 0:01:21.7]} 27... Qf5
{[%clk 0:00:28.6]} 28. f4 {[%clk 0:00:52.3]} 28... Bxd3 {[%clk 0:00:23.9]} 29.
Bxe8 {[%clk 0:00:26.9]} 29... Bxb1 {[%clk 0:00:24.4]} 30. Rb8 {[%clk 0:00:28.3]}
30... Kh7 {[%clk 0:00:23.1]} 31. Qb3 {[%clk 0:00:24.1]} 31... Bc2 {[%clk
0:00:21.9]} 32. Qf3 {[%clk 0:00:18.2]} 32... Re3 {[%clk 0:00:21.4]} 33. Qa8
{[%clk 0:00:16]} 33... Qg6 {[%clk 0:00:16.7]} 34. g4 {[%clk 0:00:13]} 34... Qf6
{[%clk 0:00:15.4]} 35. f5 {[%clk 0:00:11.4]} 35... Qe5+ {[%clk 0:00:15.9]} 36.
Kg2 {[%clk 0:00:12.8]} 36... Be4+ {[%clk 0:00:16.5]} 37. Nf3 {[%clk 0:00:09]}
37... Bxa8 {[%clk 0:00:15.9]} 38. Rxa8 {[%clk 0:00:10.9]} 38... Re2+ {[%clk
0:00:16.2]} 39. Kf1 {[%clk 0:00:12.6]} 39... Qe3 {[%clk 0:00:17.1]} 0-1

[Event "*** Titled Tuesday 3|2 Blitz"]
[Site "Chess.com"]
[Date "2016.01.05"]
[Round "5"]
[White "FairChess_on_YouTube"]
[Black "Hikaru"]
[Result "1-0"]
[WhiteElo "2762"]
[BlackElo "2894"]
[TimeControl "180+2"]
[EndTime "12:00:21 PST"]
[Termination "FairChess_on_YouTube won by resignation"]

1. d4 {[%clk 0:03:01.9]} 1... Nf6 {[%clk 0:03:00.8]} 2. c4 {[%clk 0:03:02.7]}
2... c6 {[%clk 0:03:02.1]} 3. Bf4 {[%clk 0:03:01.4]} 3... g6 {[%clk 0:02:51.4]}
4. Nc3 {[%clk 0:02:56.8]} 4... d6 {[%clk 0:02:52.8]} 5. Qd2 {[%clk 0:02:46]}
5... Nbd7 {[%clk 0:02:47.8]} 6. Nf3 {[%clk 0:02:44.5]} 6... Bg7 {[%clk
0:02:48.8]} 7. e4 {[%clk 0:02:33.9]} 7... O-O {[%clk 0:02:46.8]} 8. Be2 {[%clk
0:02:34]} 8... e5 {[%clk 0:02:21.5]} 9. dxe5 {[%clk 0:02:20.1]} 9... dxe5 {[%clk
0:02:23.4]} 10. Nxe5 {[%clk 0:02:18.3]} 10... Nxe4 {[%clk 0:02:24.2]} 11. Nxe4
{[%clk 0:02:13.5]} 11... Nxe5 {[%clk 0:02:25.3]} 12. O-O-O {[%clk 0:01:53.9]}
12... Qxd2+ {[%clk 0:01:44.7]} 13. Rxd2 {[%clk 0:01:54.5]} 13... Be6 {[%clk
0:01:39.6]} 14. b3 {[%clk 0:01:54.4]} 14... Rfe8 {[%clk 0:01:37.6]} 15. Rhd1
{[%clk 0:01:22.7]} 15... a5 {[%clk 0:01:21.8]} 16. Nd6 {[%clk 0:01:08.9]} 16...
Re7 {[%clk 0:01:17.4]} 17. Nxb7 {[%clk 0:00:54.6]} 17... Nd7 {[%clk 0:01:06.9]}
18. Bf3 {[%clk 0:00:42.4]} 18... a4 {[%clk 0:00:41.7]} 19. b4 {[%clk 0:00:36.8]}
19... Bc3 {[%clk 0:00:35.6]} 20. Re2 {[%clk 0:00:34.6]} 20... Bxb4 {[%clk
0:00:21.1]} 21. Bd6 {[%clk 0:00:25.7]} 21... Bxd6 {[%clk 0:00:20.8]} 22. Rxd6
{[%clk 0:00:27.3]} 22... Nb6 {[%clk 0:00:21.4]} 23. Rxc6 {[%clk 0:00:21.2]}
23... Nd7 {[%clk 0:00:22.6]} 24. Rc7 {[%clk 0:00:10.3]} 24... Ra7 {[%clk
0:00:24.1]} 25. c5 {[%clk 0:00:08.1]} 25... Kf8 {[%clk 0:00:24.8]} 26. c6 {[%clk
0:00:09.2]} 26... Nb6 {[%clk 0:00:23.2]} 27. Rxe7 {[%clk 0:00:10.3]} 27... Kxe7
{[%clk 0:00:25.1]} 28. Nc5 {[%clk 0:00:10.8]} 28... Kd6 {[%clk 0:00:25.9]} 29.
Nxe6 {[%clk 0:00:11.6]} 29... fxe6 {[%clk 0:00:27.8]} 30. Kc2 {[%clk 0:00:11.4]}
30... Ra5 {[%clk 0:00:28.4]} 31. Kc3 {[%clk 0:00:11.8]} 31... h5 {[%clk
0:00:21.7]} 32. Kb4 {[%clk 0:00:12]} 32... Rf5 {[%clk 0:00:23.1]} 33. Rd2+
{[%clk 0:00:11.6]} 33... Kc7 {[%clk 0:00:24.1]} 34. Re2 {[%clk 0:00:12]} 34...
Kd6 {[%clk 0:00:23.3]} 35. h4 {[%clk 0:00:12]} 35... g5 {[%clk 0:00:21.8]} 36.
hxg5 {[%clk 0:00:12.7]} 36... Rxg5 {[%clk 0:00:23.7]} 37. Rd2+ {[%clk
0:00:13.4]} 37... Kc7 {[%clk 0:00:24]} 38. Re2 {[%clk 0:00:15]} 38... Kd6 {[%clk
0:00:25.4]} 39. Re4 {[%clk 0:00:14.1]} 39... Nd5+ {[%clk 0:00:25.1]} 40. Kc4
{[%clk 0:00:14.8]} 40... Nb6+ {[%clk 0:00:24.6]} 41. Kb4 {[%clk 0:00:16.1]}
41... Nd5+ {[%clk 0:00:25.5]} 42. Ka3 {[%clk 0:00:17.7]} 42... Nc7 {[%clk
0:00:26.3]} 43. Rd4+ {[%clk 0:00:17.7]} 43... Kc5 {[%clk 0:00:27.7]} 44. Rxa4
{[%clk 0:00:18.8]} 44... Nb5+ {[%clk 0:00:28.1]} 45. Kb2 {[%clk 0:00:19.8]}
45... Rf5 {[%clk 0:00:28.8]} 46. Rh4 {[%clk 0:00:19.3]} 46... Kb6 {[%clk
0:00:30]} 47. Rxh5 {[%clk 0:00:18.4]} 47... Rf4 {[%clk 0:00:31.7]} 48. Rxb5+
{[%clk 0:00:13.2]} 1-0